Cogmind - Beta 13 @@@ ROGUE MODE // 2024.07.10 @ 21:09:05 Player: celerysam Result: Destroyed by Y-45 Defender with Beam Rifle Performance ------------- Evolutions (1) 500 Regions Visited (2) 400 Robots Destroyed (11) 55 Value Destroyed (318) 318 Prototype IDs (2) 40 Alien Tech Used (0) 0 Bonus (0) 0 TOTAL SCORE: 1313 Bonus ------- None Cogmind --------- Core Integrity 0/400 Matter 290/300 Energy 122/125 System Corruption 0% Temperature Warm (103) Movement Walking (120) Location -9/Materials Parts ------- > --- POWER (1) -------- Light Ion Engine > --- PROPULSION (4) --- Aluminum Leg Aluminum Leg Flight Unit Flight Unit > --- UTILITY (2) ------ Medium Storage Unit > --- WEAPON (2) ------- Beam Rifle Particle Gun > --- INVENTORY (10) --- Ion Engine Light Ion Engine Improved Ion Engine Small Storage Unit ECM Suite Peak State ------------ > --- POWER ------------ Light Ion Engine > --- PROPULSION ------- Aluminum Leg Aluminum Leg Flight Unit Flight Unit > --- UTILITY ---------- Medium Storage Unit > --- WEAPON ----------- Beam Rifle Particle Gun > --- INVENTORY -------- Ion Engine Light Ion Engine Improved Ion Engine Small Storage Unit ECM Suite [Rating: 10] Favorites ----------- Power Ion Engine Engine Ion Engine Propulsion Compact Wheel Treads Light Treads Leg Aluminum Leg Wheel Compact Wheel Flight Unit Flight Unit Utility Medium Storage Unit Device Seismic Detector Storage Medium Storage Unit Weapon Light Assault Rifle Energy Gun Medium Laser Ballistic Gun Light Assault Rifle Build | -11 -10 -9 ------- Run | Yrd Mat Mat Slots Evolved 2 | . . 2 Power . | . . . Propulsion 2 | . . 2 Utility . | . . . Weapon . | . . . Parts Attached 24 | 6 1 17 Power 4 | 1 . 3 Engine 4 | 1 . 3 Core . | . . . Reactor . | . . . Propulsion 9 | 2 . 7 Treads 3 | . . 3 Leg 2 | . . 2 Wheel 2 | 2 . . Hover . | . . . Flight 2 | . . 2 Utility 4 | 1 1 2 Device 2 | . 1 1 Storage 2 | 1 . 1 Processor . | . . . Hackware . | . . . Protection . | . . . Artifact . | . . . Weapon 7 | 2 . 5 Energy Gun 5 | 1 . 4 Energy Cannon . | . . . Ballistic Gun 2 | 1 . 1 Ballistic Cannon . | . . . Launcher . | . . . Special Weapon . | . . . Impact Weapon . | . . . Slashing Weapon . | . . . Piercing Weapon . | . . . Special Melee Weapon . | . . . Unidentified Prototypes . | . . . Parts Lost 15 | . . 15 Power 3 | . . 3 Propulsion 5 | . . 5 Utility 2 | . . 2 Weapon 5 | . . 5 Highest Loss Streak 8 | . . 8 To Critical Strikes 1 | . . 1 Average Slot Usage (%) 73 | . 98 64 Engine 9 | . 14 7 Treads 5 | . . 7 Leg 2 | . . 3 Wheel 14 | . 28 9 Flight 2 | . . 3 Device 8 | . 12 7 Storage 11 | . 14 11 Energy Gun 9 | . 14 7 Ballistic Gun 8 | . 14 6 Naked Turns . | . . . Heaviest Build 19 | 13 14 19 Greatest Support 60 | 26 26 60 Greatest Overweight (x) 4 | . . 4 Average Overweight (x) . | . . . Largest Inventory Capacity 10 | 8 8 10 Average Capacity 9 | 7 8 9 Most Carried 10 | 6 7 10 Average Carried 6 | 3 6 7 Final Capacity 10 | 8 8 10 Final Carried 6 | 6 6 5 Class Distribution -------------------- 73% | Mutant 26% | Scavenger-Mutant Dominant Class ---------------- Mutant | -10/Materials Mutant | -9/Materials Resources | -11 -10 -9 ----------- Run | Yrd Mat Mat Matter Collected 410 | 244 30 136 Remotely . | . . . Salvage Created 334 | . 31 303 Parts 25 | . 1 24 Haulers Intercepted . | . . . Recyclers Shooed . | . . . Parts Field Recycled . | . . . Retrieved Matter . | . . . Parts Self-Destructed . | . . . Prevented . | . . . Kills | -11 -10 -9 ------- Run | Yrd Mat Mat Combat Hostiles Destroyed 9 | . 1 8 Guns 8 | . 1 7 AOE 1 | . . 1 Classes Destroyed 5 | . 1 4 Builder 1 | . . 1 Mechanic 1 | . . 1 Swarmer 2 | . . 2 Grunt 5 | . 1 4 Sentry 2 | . . 2 Best Kill Streak 7 | . 1 7 Combat Bots Only 5 | . 1 5 Max Kills in Single Turn 3 | . 1 3 Gunslinging . | . . . Exploded 1 | . . 1 Melee . | . . . Uniques/NPCs Destroyed . | . . . Combat | -11 -10 -9 -------- Run | Yrd Mat Mat Hostile Shots Fired 173 | . 5 168 Missed 38 | . 1 37 Damage Taken 1733 | . 45 1688 Core 417 | . 10 407 Absorbed by Shields . | . . . Core Remaining (%) 98 | 100 96 . Volleys Fired 52 | . 4 48 Largest 2 | . 2 2 Hottest 121 | . 70 121 Shots Fired 73 | . 8 65 Gun 73 | . 8 65 Cannon . | . . . Launcher . | . . . Special . | . . . Kinetic 35 | . 4 31 Thermal 38 | . 4 34 Explosive . | . . . Electromagnetic . | . . . Robot Hit Streak 14 | . 3 14 Robot Miss Streak 4 | . 4 2 Penetration Max . | . . . Secondary Targets 1 | . . 1 Max Gunslinging Chain 1 | . . 1 Shots Hit Robots 48 | . 3 45 Core Hits 23 | . 2 21 Critical Kills . | . . . Critical Parts Destroyed . | . . . Critical Strikes 1 | . . 1 Burn 1 | . . 1 Melee Attacks . | . . . Impact . | . . . Slashing . | . . . Piercing . | . . . Sneak Attacks . | . . . Combat Hostiles . | . . . Follow-up Attacks . | . . . Damage Inflicted 765 | . 31 734 Guns 473 | . 31 442 Cannons . | . . . Explosions 287 | . . 287 Melee . | . . . Ramming 5 | . . 5 Kinetic 225 | . 6 219 Thermal 248 | . 25 223 Explosive 287 | . . 287 Electromagnetic . | . . . Impact . | . . . Slashing . | . . . Piercing . | . . . Highest Corruption . | . . . Average Corruption . | . . . Corruption Purged . | . . . Corruption Blocked . | . . . Overload Shots . | . . . Overflow Damage 49 | . . 49 Projectiles . | . . . Explosions 49 | . . 49 Melee . | . . . Knockbacks . | . . . Impact . | . . . Kinetic . | . . . Secondary . | . . . Self-Inflicted Damage 113 | . . 113 Shots 1 | . . 1 Rammed . | . . . Targets Rammed 1 | . . 1 Kicked 1 | . . 1 Crushed . | . . . Highest Temperature 94 | . 84 94 Average Temperature 27 | . 44 22 Received Heat Transfer 591 | . 24 567 Siege Activations . | . . . Robots Corrupted . | . . . Combat Hostiles . | . . . Parts Fried . | . . . Impact Corruptions . | . . . Robots Melted . | . . . Combat Hostiles . | . . . Parts Melted . | . . . Heat Transferred 706 | . 74 632 Parts Sabotaged . | . . . Parts Stolen . | . . . Parts Stripped . | . . . Power Chain Reactions . | . . . Alert | -11 -10 -9 ------- Run | Yrd Mat Mat Peak Influence 286 | . 50 286 Initial 20 | . . 20 Average 88 | . 10 137 Maximum Alert Level 1 | . . 1 Low Security (%) 79 | 100 100 67 Level 1 20 | . . 32 Level 2 . | . . . Level 3 . | . . . Level 4 . | . . . Level 5 . | . . . High Security . | . . . Max Security . | . . . Squads Dispatched . | . . . Investigation . | . . . Extermination . | . . . Reinforcement . | . . . Assault . | . . . Garrison . | . . . Intercept . | . . . Searches Triggered . | . . . Construction Impeded . | . . . Haulers Reinforced . | . . . Active Scanning Responses . | . . . Cargo Convoy Interrupts . | . . . Stealth | -11 -10 -9 --------- Run | Yrd Mat Mat Distress Signals 1 | . 1 . Communications Jammed . | . . . Distress Signals . | . . . Times Spotted 19 | . 3 16 Peak Tracking Total 10 | . 3 10 Tactical Retreats 3 | . . 3 Traps | -11 -10 -9 ------- Run | Yrd Mat Mat Traps Triggered . | . . . Indirectly . | . . . Trap Hack Attempts . | . . . Triggered . | . . . Disarmed . | . . . Reprogrammed . | . . . Reused . | . . . Traps Extracted . | . . . Installed . | . . . Triggered . | . . . Machines | -11 -10 -9 ---------- Run | Yrd Mat Mat Machines Disabled 2 | . . 2 Max in Single Turn 2 | . . 2 Machines Repaired . | . . . Machines Dismantled . | . . . Machines Sabotaged . | . . . Overloaded Fab Kills . | . . . Hacking | -11 -10 -9 --------- Run | Yrd Mat Mat Machines Accessed 3 | . 1 2 Terminals 2 | . 1 1 Fabricators . | . . . Repair Stations . | . . . Recycling Units 1 | . . 1 Scanalyzers . | . . . Garrison Access . | . . . Total Hacks 6 | . 2 4 Successful 3 | . 1 2 Failed 3 | . 1 2 Catastrophic 1 | . 1 . Database Lockouts . | . . . Manual . | . . . Terminals 4 | . 2 2 Fabricators . | . . . Repair Stations . | . . . Recycling Units 2 | . . 2 Scanalyzers . | . . . Garrison Access . | . . . Terminal Hacks 2 | . 1 1 Prototype ID Bank 1 | . . 1 Registered Components 1 | . 1 . Fabricator Hacks . | . . . Repair Station Hacks . | . . . Recycling Unit Hacks 1 | . . 1 Report Inventory 1 | . . 1 Scanalyzer . | . . . Garrison Access Hacks . | . . . Unauthorized Hacks . | . . . Terminals . | . . . Fabricators . | . . . Repair Stations . | . . . Recycling Units . | . . . Scanalyzers . | . . . Garrison Access . | . . . Data Cores Recovered . | . . . Used . | . . . Hacking Detections 3 | . 1 2 Full Trace Events . | . . . Feedback Events . | . . . Feedback Blocked . | . . . Robot Schematics Acquired . | . . . Robots Built . | . . . Authchips . | . . . Time . | . . . Total Robot Build Rating . | . . . Part Schematics Acquired . | . . . Parts Built . | . . . Authchips . | . . . Time . | . . . Total Part Build Rating . | . . . Parts Repaired . | . . . Time . | . . . Parts Recycled . | . . . Recycled Matter . | . . . Retrieved Matter . | . . . Retrieved Components . | . . . Parts Scanalyzed . | . . . Part Schematics Acquired . | . . . Parts Damaged . | . . . Bothacking | -11 -10 -9 ------------ Run | Yrd Mat Mat Used RIF Installer . | . . . Robots Hacked . | . . . Non-combat . | . . . Combat . | . . . Robot Hacks Applied . | . . . Relay Couplers Released . | . . . Fabnet Peak Effective % . | . . . Robots Rewired . | . . . Allies Hacked . | . . . Hacks Repelled . | . . . Allies | -11 -10 -9 -------- Run | Yrd Mat Mat Total Allies . | . . . Largest Group . | . . . Highest-Rated Group . | . . . Highest-Rated Ally . | . . . Total Orders . | . . . Ally Attacks . | . . . Total Damage . | . . . Kills . | . . . Allies Corrupted . | . . . Allies Melted . | . . . Intel | -11 -10 -9 ------- Run | Yrd Mat Mat Robot Analysis Total . | . . . Derelict Logs Recovered . | . . . Drone Launches . | . . . Drone Recoveries . | . . . Exploration | -11 -10 -9 ------------- Run | Yrd Mat Mat Turns Passed 408 | 66 86 256 Spaces Moved 249 | 56 81 112 Core 8 | 4 . 4 Treads 10 | . . 10 Legs 15 | . . 15 Wheels 216 | 52 81 83 Hover . | . . . Flight . | . . . Fastest Speed 50 | 50 90 90 Average Speed 96 | 87 90 105 Slowest Speed 250 | 90 90 250 Overloaded Moves . | . . . Propulsion Burnouts . | . . . Robots Hopped . | . . . Cave-ins Triggered . | . . . Exploration Rate (%) 13 | 3 23 13 Regions Visited 2 Branch Regions . Pre-discovered Areas . | . . . Known Exits Taken . | . . . Unknown Exits Taken 2 | 1 1 . Scrap Searched . | . . . Spaces Dug . | . . . Terrain Destroyed 32 | . . 32 Melee . | . . . Projectile . | . . . AOE 32 | . . 32 Terrain Rammed . | . . . Walls Destroyed . | . . . Machines Disabled . | . . . Actions | -11 -10 -9 --------- Run | Yrd Mat Mat Total 347 | 73 86 188 Wait . | . . . Move 247 | 55 80 112 Hop . | . . . Pick Up 23 | 12 1 10 Fast Attach 5 | . . 5 Attach 18 | 6 1 11 Detach . | . . . Swap 1 | . . 1 Drop . | . . . Fire 52 | . 4 48 Melee . | . . . Ram . | . . . Kick 1 | . . 1 Crush . | . . . Escape Stasis . | . . . Rewire . | . . . Trap . | . . . Miscellaneous . | . . . Route ------- -11/Scrapyard -10/Materials -9/Materials History --------- Turn | Location | Event 10 | -11/Scrapyard | Discovered new exit (range 16) 67 | -11/Scrapyard | Entered Materials 139 | -10/Materials | Discovered new exit (range 16) 153 | -10/Materials | Entered another Materials area 153 | -9/Materials | Evolved 2 slots: Propulsion x2 281 | -9/Materials | Core integrity fell below 50% 308 | -9/Materials | Lost 8 parts (2p2n1u3w) 359 | -9/Materials | Core integrity fell below 20% 395 | -9/Materials | Lost 7 parts (1p3n1u2w) 409 | -9/Materials | Destroyed by Y-45 Defender with Beam Rifle Last Messages --------------- 00377_ R-06 Scavenger collects Aluminum Leg. 00377_ U-05 Engineer lays Concrete. 00380_ U-05 Engineer builds a Wall. 00380_ U-05 Engineer lays Concrete. 00381_ K-01 Serf collects debris. 00383_ U-05 Engineer lays Concrete. 00384_ K-01 Serf collects debris. 00385_ U-05 Engineer builds a Wall. 00385_ U-05 Engineer lays Concrete. 00386_ U-05 Engineer builds a Wall. 00386_ U-05 Engineer lays Concrete. 00387_ K-01 Serf collects debris. 00388_ U-05 Engineer lays Concrete. 00390_ U-05 Engineer builds a Wall. 00391_ K-01 Serf collects debris. 00391_ U-05 Engineer builds a Wall. 00398_ The unstable cave ceiling collapses. 00399_ Acquired Particle Gun. 00402_ U-05 Engineer lays Concrete. 00407_ Y-45 Defender suffers critical hit (Burn). Map ----- +----------------------------------------------------+ | ?????????????????????????????????? | | ?????????????????????????????????? | | ?????????????????????????????????? | | ?????????????????????????????????? | | ?????????????????????????????????? | | ??????????????????????#####??????? | | ?######??????????????? ??????? | | ## ??????????????? ??????? | | ??????????????? ???????? | | ??????????????# #???????? | | ??????????????# #???????? | | ?# ????#######???# +???????? | | ??# ######## ##??# #???????? | | ??# # % [ #### ###?????? | | ??# # "" =! # #?????? | | ??# + "T ! ## #?????? | | ??# # " % ### #?????? | | ??# # % %! % #?????? | | ??# # =% ## #?????? | | ??# # ## #?????? | | ??# # ## k #?????? | | ??# #### # # #####Y#+####???? | | ??# #??# ## # #???? | | ### #??# ?#### #???? | | # #??# ????# #???? | | " # #??#?????# @ #???? | | " # #?######## ! #???? | | # #?# # #???? | | # #?# ""# #???? | | + #?# T"# #???? | | # #?# ""# #???? | | # #?# # #???? | | ### ### # = #???? | | ?# ###+###################???? | | ?# #???????????? | | ?# #???????????? | | ?# #???????????? | | ?# ## #######???????????? | | ?######## #?????????????????? | | ????????#! !#?????????????????? | | ????????##!!! ##?????????????????? | | ?????????######??????????????????? | | ?????????????????????????????????? | | | | | | | | | | | | | | | +----------------------------------------------------+ Best States ------------- Heat Dissipation 38 Energy Generation 12 Energy Capacity 265 Matter Stores 300 Matter Capacity 300 Sight Range 16 Terrain Scan Density 10 Evasion (%) 50 Recoil Reduction 3 Item Schematics ----------------- None Robot Schematics ------------------ None Fabricated ------------ Nothing Alien Tech Used ----------------- None Achievements -------------- None Challenges ------------ None Game ------ Seed PotentialHybridMicrothruster Manual? 0 Play Time 00:06:44 Cumulative 91.0 hours Start 2024.07.10 @ 21:01:38 End 2024.07.10 @ 21:09:05 Sessions 1 Manual Loads 0 Difficulty Rogue Special Mode None Game No. 131 Rogue 131 Adventurer 0 Explorer 0 Win Type - Total 0 Types 0/0/0/0/0/0/0/0/0 Lore% 39 Gallery% 54 Achievement% 34 Wizard Run 0 Options --------- Layout 0 ASCII 0 Keyboard 0 Movement Mouse Keybinds 0 Fullscreen 1 Font 24/Smallcaps Map View 76x50 Zoom Use 0% Tactical HUD 1 Map Filters NONE Filters NONE Steam 1 RUN: 98d9a481-02a7-49d7-9cd5-c37f0f73a294